[Event "Early-Titled-Tuesday-Blitz-February-06-2024"]
[Site "Chess.com"]
[Date "2024.02.06"]
[Round "1"]
[White "chucksterf10"]
[Black "Teidi96"]
[Result "1-0"]
[WhiteElo "2648"]
[BlackElo "2322"]
[TimeControl "180+1"]
[EndTime "8:07:10 PST"]
[Termination "chucksterf10 won by resignation"]

1. f4 {[%clk 0:03:00.2]} 1... Nf6 {[%clk 0:02:57.9]} 2. Nf3 {[%clk 0:03:00.6]}
2... g6 {[%clk 0:02:58.5]} 3. Nc3 {[%clk 0:03:00.2]} 3... Bg7 {[%clk 0:02:59.1]}
4. e4 {[%clk 0:03:00.6]} 4... d6 {[%clk 0:02:58.8]} 5. d4 {[%clk 0:03:01]} 5...
e6 {[%clk 0:02:55.7]} 6. Be3 {[%clk 0:02:56]} 6... O-O {[%clk 0:02:55.6]} 7. Qd2
{[%clk 0:02:56.4]} 7... b6 {[%clk 0:02:55.9]} 8. Bd3 {[%clk 0:02:47.9]} 8... Bb7
{[%clk 0:02:56.2]} 9. O-O-O {[%clk 0:02:47.2]} 9... Qe7 {[%clk 0:02:54.5]} 10.
Rdg1 {[%clk 0:02:42]} 10... Nbd7 {[%clk 0:02:42.8]} 11. g4 {[%clk 0:02:36.6]}
11... e5 {[%clk 0:02:43.1]} 12. d5 {[%clk 0:02:34.9]} 12... exf4 {[%clk
0:02:40]} 13. Bxf4 {[%clk 0:02:35]} 13... Ne5 {[%clk 0:02:36.9]} 14. Nxe5 {[%clk
0:02:34.3]} 14... dxe5 {[%clk 0:02:36.8]} 15. Bg5 {[%clk 0:02:34.8]} 15... Qd7
{[%clk 0:02:10.2]} 16. h4 {[%clk 0:02:29.9]} 16... Ne8 {[%clk 0:02:05.7]} 17. h5
{[%clk 0:02:29.9]} 17... f6 {[%clk 0:02:04.6]} 18. Bh6 {[%clk 0:02:20.6]} 18...
g5 {[%clk 0:02:00.8]} 19. Bxg7 {[%clk 0:02:19.8]} 19... Kxg7 {[%clk 0:02:01.2]}
20. h6+ {[%clk 0:02:17]} 20... Kg8 {[%clk 0:02:01.3]} 21. Rf1 {[%clk 0:02:17.6]}
21... Qxg4 {[%clk 0:01:51.2]} 22. Rhg1 {[%clk 0:02:10.1]} 22... Qd7 {[%clk
0:01:49.9]} 23. Bb5 {[%clk 0:02:06]} 23... Qe7 {[%clk 0:01:49.5]} 24. Be2 {[%clk
0:01:55.1]} 24... Nd6 {[%clk 0:01:45.1]} 25. a4 {[%clk 0:01:51.1]} 25... a5
{[%clk 0:01:44.9]} 26. Qe3 {[%clk 0:01:48.5]} 26... Kh8 {[%clk 0:01:38.2]} 27.
Nb5 {[%clk 0:01:48.3]} 27... Nxb5 {[%clk 0:01:36.6]} 28. axb5 {[%clk 0:01:49.2]}
28... a4 {[%clk 0:01:29.8]} 29. c3 {[%clk 0:01:46.2]} 29... a3 {[%clk 0:01:28]}
30. b4 {[%clk 0:01:46.7]} 30... Bc8 {[%clk 0:01:10.4]} 31. Kc2 {[%clk
0:01:35.8]} 31... Bd7 {[%clk 0:00:57.2]} 32. Kb3 {[%clk 0:01:32.5]} 32... Qe8
{[%clk 0:00:54.9]} 33. c4 {[%clk 0:01:31.7]} 33... a2 {[%clk 0:00:47.9]} 34. Ra1
{[%clk 0:01:31.8]} 34... Qb8 {[%clk 0:00:46.8]} 35. Rxa2 {[%clk 0:01:28.7]}
35... Rxa2 {[%clk 0:00:46]} 36. Kxa2 {[%clk 0:01:29.6]} 36... Qa7+ {[%clk
0:00:46]} 37. Kb2 {[%clk 0:01:30.3]} 37... Ra8 {[%clk 0:00:44.9]} 38. Qb3 {[%clk
0:01:31]} 38... Be8 {[%clk 0:00:20.3]} 39. Rf1 {[%clk 0:01:31]} 39... Bg6 {[%clk
0:00:08.2]} 40. Bd3 {[%clk 0:01:31.4]} 40... Rf8 {[%clk 0:00:07.5]} 41. Qa3
{[%clk 0:01:28.6]} 41... Qxa3+ {[%clk 0:00:07.2]} 42. Kxa3 {[%clk 0:01:29.5]}
42... Kg8 {[%clk 0:00:07.6]} 43. c5 {[%clk 0:01:29.6]} 43... Kf7 {[%clk
0:00:07.1]} 44. d6 {[%clk 0:01:30.1]} 44... bxc5 {[%clk 0:00:06.1]} 45. bxc5
{[%clk 0:01:30.3]} 45... cxd6 {[%clk 0:00:06.2]} 46. c6 {[%clk 0:01:28.9]} 46...
Ke6 {[%clk 0:00:04.6]} 47. Bc4+ {[%clk 0:01:28.8]} 47... Ke7 {[%clk 0:00:04.6]}
48. b6 {[%clk 0:01:28.8]} 48... Bxe4 {[%clk 0:00:04.4]} 49. c7 {[%clk
0:01:28.4]} 49... Bb7 {[%clk 0:00:04.4]} 50. Kb4 {[%clk 0:01:27.4]} 50... d5
{[%clk 0:00:03.8]} 51. Bb5 {[%clk 0:01:24]} 51... Kd6 {[%clk 0:00:03.9]} 52. Ra1
{[%clk 0:01:24.2]} 52... f5 {[%clk 0:00:02.8]} 53. Ra7 {[%clk 0:01:24.9]} 53...
e4 {[%clk 0:00:03.3]} 54. Rxb7 {[%clk 0:01:24.8]} 54... f4 {[%clk 0:00:03.9]}
55. Rb8 {[%clk 0:01:25.4]} 55... Rf6 {[%clk 0:00:02.8]} 56. c8=Q {[%clk
0:01:25.3]} 56... Ke5 {[%clk 0:00:03.4]} 57. Qh8 {[%clk 0:01:23]} 57... Kf5
{[%clk 0:00:02.1]} 58. Bd7+ {[%clk 0:01:22.9]} 58... Ke5 {[%clk 0:00:01.7]} 59.
Re8+ {[%clk 0:01:23.5]} 59... Kd6 {[%clk 0:00:01.6]} 60. Qxf6+ {[%clk
0:01:24.4]} 60... Kxd7 {[%clk 0:00:02.3]} 61. b7 {[%clk 0:01:24.7]} 1-0

[Event "Early-Titled-Tuesday-Blitz-February-06-2024"]
[Site "Chess.com"]
[Date "2024.02.06"]
[Round "1"]
[White "SmirnovAlexandrA"]
[Black "ClaudiaSof"]
[Result "1-0"]
[WhiteElo "2601"]
[BlackElo "2251"]
[TimeControl "180+1"]
[EndTime "8:07:10 PST"]
[Termination "SmirnovAlexandrA won by resignation"]

1. e4 {[%clk 0:03:00.9]} 1... e5 {[%clk 0:02:59.1]} 2. d4 {[%clk 0:03:00.7]}
2... exd4 {[%clk 0:02:58.4]} 3. Qxd4 {[%clk 0:03:01.6]} 3... Nc6 {[%clk
0:02:57.4]} 4. Qe3 {[%clk 0:03:01.7]} 4... Nf6 {[%clk 0:02:57.4]} 5. Nc3 {[%clk
0:03:01.8]} 5... Bb4 {[%clk 0:02:56.7]} 6. Bd2 {[%clk 0:03:02.1]} 6... O-O
{[%clk 0:02:56]} 7. O-O-O {[%clk 0:03:01.9]} 7... Re8 {[%clk 0:02:55.8]} 8. Qg3
{[%clk 0:03:01.6]} 8... Rxe4 {[%clk 0:02:42.9]} 9. a3 {[%clk 0:02:57.1]} 9...
Bf8 {[%clk 0:02:32.3]} 10. f4 {[%clk 0:02:56.6]} 10... d5 {[%clk 0:02:27.2]} 11.
Nxe4 {[%clk 0:02:51.3]} 11... Nxe4 {[%clk 0:02:26.5]} 12. Qe1 {[%clk 0:02:51.4]}
12... Qf6 {[%clk 0:02:19]} 13. Nf3 {[%clk 0:02:45.8]} 13... Bxa3 {[%clk
0:02:15.6]} 14. c3 {[%clk 0:02:31.7]} 14... Bd6 {[%clk 0:02:13.3]} 15. Bd3
{[%clk 0:02:28.5]} 15... Nc5 {[%clk 0:01:50.7]} 16. Qe8+ {[%clk 0:02:22.5]}
16... Bf8 {[%clk 0:01:47.4]} 17. Bc2 {[%clk 0:02:23.4]} 17... a5 {[%clk
0:01:32.5]} 18. g4 {[%clk 0:02:00.4]} 18... a4 {[%clk 0:01:24.6]} 19. Ng5 {[%clk
0:01:57.4]} 19... g6 {[%clk 0:01:04.4]} 20. f5 {[%clk 0:01:48.2]} 20... Qe7
{[%clk 0:00:57.8]} 21. Rhe1 {[%clk 0:01:42.5]} 21... Qxe8 {[%clk 0:00:52.9]} 22.
Rxe8 {[%clk 0:01:43.4]} 22... h6 {[%clk 0:00:44.8]} 23. Nf3 {[%clk 0:01:34.9]}
23... g5 {[%clk 0:00:44.1]} 24. h4 {[%clk 0:01:34.7]} 24... f6 {[%clk
0:00:42.1]} 25. hxg5 {[%clk 0:01:28.5]} 25... hxg5 {[%clk 0:00:41.7]} 26. Be3
{[%clk 0:01:29.2]} 26... Nb3+ {[%clk 0:00:38]} 27. Bxb3 {[%clk 0:01:26.2]} 27...
axb3 {[%clk 0:00:36.9]} 28. Bc5 {[%clk 0:01:26.6]} 28... b6 {[%clk 0:00:17.9]}
29. Rxf8+ {[%clk 0:01:03.1]} 29... Kg7 {[%clk 0:00:17.8]} 30. Rxc8 {[%clk
0:00:55.3]} 30... Rxc8 {[%clk 0:00:17.8]} 31. Bd4 {[%clk 0:00:55.6]} 31... Kf7
{[%clk 0:00:16.5]} 32. Re1 {[%clk 0:00:53.1]} 32... Ne7 {[%clk 0:00:16.4]} 33.
Re6 {[%clk 0:00:50.9]} 33... Ng8 {[%clk 0:00:16.1]} 34. Rc6 {[%clk 0:00:48.6]}
34... Ke7 {[%clk 0:00:15.5]} 35. Nd2 {[%clk 0:00:43]} 35... Kd7 {[%clk
0:00:15.5]} 36. Re6 {[%clk 0:00:43.1]} 36... Ra8 {[%clk 0:00:15.1]} 37. Nxb3
{[%clk 0:00:42.9]} 37... Rf8 {[%clk 0:00:13.1]} 38. Kd2 {[%clk 0:00:41.3]} 38...
c5 {[%clk 0:00:13.3]} 39. Bf2 {[%clk 0:00:39.9]} 39... Rb8 {[%clk 0:00:12.4]}
40. Bg3 {[%clk 0:00:38.6]} 40... Rb7 {[%clk 0:00:11.9]} 41. Rd6+ {[%clk
0:00:37.6]} 41... Ke7 {[%clk 0:00:11.5]} 42. Rxd5 {[%clk 0:00:37.8]} 1-0

[Event "Early-Titled-Tuesday-Blitz-February-06-2024"]
[Site "Chess.com"]
[Date "2024.02.06"]
[Round "1"]
[White "FLYD"]
[Black "FARIZA2018"]
[Result "1-0"]
[WhiteElo "2051"]
[BlackElo "2534"]
[TimeControl "180+1"]
[EndTime "8:07:11 PST"]
[Termination "FLYD won on time"]

1. e4 {[%clk 0:03:00.9]} 1... e5 {[%clk 0:02:57.3]} 2. Nf3 {[%clk 0:03:00.8]}
2... Nc6 {[%clk 0:02:55.6]} 3. Bb5 {[%clk 0:02:59.4]} 3... a6 {[%clk 0:02:46.7]}
4. Ba4 {[%clk 0:02:58.4]} 4... Nf6 {[%clk 0:02:30.1]} 5. O-O {[%clk 0:02:58.6]}
5... Be7 {[%clk 0:02:18.7]} 6. Re1 {[%clk 0:02:57.6]} 6... b5 {[%clk 0:02:09.4]}
7. Bb3 {[%clk 0:02:57.4]} 7... d6 {[%clk 0:01:24.9]} 8. c3 {[%clk 0:02:55.9]}
8... O-O {[%clk 0:01:24.4]} 9. h3 {[%clk 0:02:54.7]} 9... Bb7 {[%clk 0:01:24.6]}
10. d4 {[%clk 0:02:53.9]} 10... Re8 {[%clk 0:01:24.5]} 11. a3 {[%clk 0:02:40.6]}
11... Bf8 {[%clk 0:01:21.7]} 12. Nbd2 {[%clk 0:02:36.1]} 12... h6 {[%clk
0:01:17.9]} 13. Bc2 {[%clk 0:02:31]} 13... Nb8 {[%clk 0:01:15.4]} 14. b4 {[%clk
0:02:26.7]} 14... Nbd7 {[%clk 0:01:10.1]} 15. a4 {[%clk 0:02:26.7]} 15... Nb6
{[%clk 0:00:55.7]} 16. a5 {[%clk 0:02:21.7]} 16... Nbd7 {[%clk 0:00:49.8]} 17.
Bb2 {[%clk 0:02:17.5]} 17... g6 {[%clk 0:00:48.5]} 18. c4 {[%clk 0:02:15.1]}
18... bxc4 {[%clk 0:00:43.5]} 19. Nxc4 {[%clk 0:02:16]} 19... exd4 {[%clk
0:00:41.7]} 20. Qxd4 {[%clk 0:02:11.7]} 20... Bg7 {[%clk 0:00:39.9]} 21. Rad1
{[%clk 0:02:06.2]} 21... Nh5 {[%clk 0:00:36.4]} 22. Qd2 {[%clk 0:02:05.3]} 22...
Bxb2 {[%clk 0:00:36.3]} 23. Nxb2 {[%clk 0:02:06.2]} 23... Nhf6 {[%clk
0:00:35.9]} 24. Qxh6 {[%clk 0:02:05]} 24... Bxe4 {[%clk 0:00:31.4]} 25. Bxe4
{[%clk 0:01:49.5]} 25... Rxe4 {[%clk 0:00:31.5]} 26. Ng5 {[%clk 0:01:46.2]}
26... Rxe1+ {[%clk 0:00:30.9]} 27. Rxe1 {[%clk 0:01:47.1]} 27... Qf8 {[%clk
0:00:30.2]} 28. Qh4 {[%clk 0:01:44.7]} 28... Re8 {[%clk 0:00:28.5]} 29. Rc1
{[%clk 0:01:44.2]} 29... c5 {[%clk 0:00:27.7]} 30. Nd3 {[%clk 0:01:37.8]} 30...
cxb4 {[%clk 0:00:21.5]} 31. Nxb4 {[%clk 0:01:38.7]} 31... Nc5 {[%clk 0:00:21.2]}
32. Nd5 {[%clk 0:01:39.1]} 32... Qg7 {[%clk 0:00:16.1]} 33. Rd1 {[%clk
0:01:23.4]} 33... Nxd5 {[%clk 0:00:15.7]} 34. Rxd5 {[%clk 0:01:24.3]} 34... Rd8
{[%clk 0:00:09.4]} 35. Nxf7 {[%clk 0:01:16.7]} 35... Re8 {[%clk 0:00:05.4]} 36.
Nxd6 {[%clk 0:01:08.9]} 36... Re1+ {[%clk 0:00:06]} 37. Kh2 {[%clk 0:01:09.1]}
37... Ne6 {[%clk 0:00:06.6]} 38. Ne4 {[%clk 0:01:03.4]} 38... Qc7+ {[%clk
0:00:06]} 39. g3 {[%clk 0:01:01.3]} 39... Qc1 {[%clk 0:00:04.7]} 40. Nf6+ {[%clk
0:00:55.9]} 40... Kf8 {[%clk 0:00:02.8]} 41. Qh8+ {[%clk 0:00:50.2]} 1-0

[Event "Early-Titled-Tuesday-Blitz-February-06-2024"]
[Site "Chess.com"]
[Date "2024.02.06"]
[Round "1"]
[White "Abund"]
[Black "EsmeraldasAnderson03"]
[Result "1-0"]
[WhiteElo "2748"]
[BlackElo "2415"]
[TimeControl "180+1"]
[EndTime "8:07:14 PST"]
[Termination "Abund won on time"]

1. e4 {[%clk 0:03:00.9]} 1... c5 {[%clk 0:02:57.4]} 2. Nf3 {[%clk 0:03:00.3]}
2... d6 {[%clk 0:02:57.8]} 3. d4 {[%clk 0:02:59.4]} 3... cxd4 {[%clk 0:02:57.5]}
4. Nxd4 {[%clk 0:03:00.3]} 4... Nf6 {[%clk 0:02:57.9]} 5. Nc3 {[%clk 0:03:00.8]}
5... a6 {[%clk 0:02:58.3]} 6. Be2 {[%clk 0:02:57.6]} 6... e5 {[%clk 0:02:56.1]}
7. Nb3 {[%clk 0:02:58]} 7... Be7 {[%clk 0:02:55.9]} 8. O-O {[%clk 0:02:57.9]}
8... O-O {[%clk 0:02:55.9]} 9. Be3 {[%clk 0:02:58.3]} 9... Be6 {[%clk
0:02:46.1]} 10. Qd3 {[%clk 0:02:54]} 10... Nc6 {[%clk 0:02:37.1]} 11. a3 {[%clk
0:02:42]} 11... b5 {[%clk 0:02:09.4]} 12. Nd5 {[%clk 0:02:37.2]} 12... Bxd5
{[%clk 0:02:04.3]} 13. exd5 {[%clk 0:02:38.1]} 13... Na5 {[%clk 0:02:03.6]} 14.
Nd2 {[%clk 0:02:30.5]} 14... Rc8 {[%clk 0:02:01.2]} 15. a4 {[%clk 0:02:11.9]}
15... Nc4 {[%clk 0:01:56.3]} 16. axb5 {[%clk 0:02:06.1]} 16... axb5 {[%clk
0:01:52.5]} 17. Nxc4 {[%clk 0:02:02.9]} 17... bxc4 {[%clk 0:01:51.6]} 18. Qd1
{[%clk 0:01:54.2]} 18... Qd7 {[%clk 0:01:48]} 19. Ra5 {[%clk 0:01:32.8]} 19...
Qb7 {[%clk 0:01:42.2]} 20. b3 {[%clk 0:01:28.9]} 20... cxb3 {[%clk 0:01:37.2]}
21. cxb3 {[%clk 0:01:25.6]} 21... Ra8 {[%clk 0:01:21.8]} 22. Rb5 {[%clk
0:01:20.3]} 22... Qc7 {[%clk 0:01:09.7]} 23. Qb1 {[%clk 0:01:20.1]} 23... Rfb8
{[%clk 0:00:58.8]} 24. Rc1 {[%clk 0:01:19.3]} 24... Qd7 {[%clk 0:00:58.6]} 25.
Rxb8+ {[%clk 0:01:12.5]} 25... Rxb8 {[%clk 0:00:59.5]} 26. Bc4 {[%clk
0:01:10.4]} 26... Ng4 {[%clk 0:00:50.9]} 27. Bd2 {[%clk 0:01:06.4]} 27... Qa7
{[%clk 0:00:28.2]} 28. Qf5 {[%clk 0:01:06]} 28... h5 {[%clk 0:00:23.6]} 29. h3
{[%clk 0:01:06]} 29... g6 {[%clk 0:00:22.8]} 30. Qf3 {[%clk 0:01:06]} 30... Nf6
{[%clk 0:00:12.2]} 31. Bc3 {[%clk 0:01:00.5]} 31... Qa2 {[%clk 0:00:08.8]} 32.
Ra1 {[%clk 0:00:57.5]} 32... Qc2 {[%clk 0:00:08.4]} 33. Ra7 {[%clk 0:00:54.4]}
33... Bd8 {[%clk 0:00:08.6]} 34. Kh2 {[%clk 0:00:50.4]} 34... Bb6 {[%clk
0:00:04]} 35. Ra6 {[%clk 0:00:43.2]} 35... Kg7 {[%clk 0:00:03.2]} 36. Be1 {[%clk
0:00:37.4]} 36... Qc1 {[%clk 0:00:02.2]} 37. Qe2 {[%clk 0:00:35.4]} 37... Bc5
{[%clk 0:00:01.7]} 38. Bd2 {[%clk 0:00:34.3]} 38... Nd7 {[%clk 0:00:02.2]} 39.
Bxc1 {[%clk 0:00:34.2]} 1-0

[Event "Early-Titled-Tuesday-Blitz-February-06-2024"]
[Site "Chess.com"]
[Date "2024.02.06"]
[Round "1"]
[White "ExchangeAB"]
[Black "NEPHILIM-SLAYER"]
[Result "0-1"]
[WhiteElo "2411"]
[BlackElo "2738"]
[TimeControl "180+1"]
[EndTime "8:07:14 PST"]
[Termination "NEPHILIM-SLAYER won by resignation"]

1. d4 {[%clk 0:03:00.9]} 1... d5 {[%clk 0:02:58.8]} 2. Nf3 {[%clk 0:03:00.9]}
2... c6 {[%clk 0:02:59.2]} 3. c3 {[%clk 0:02:59.8]} 3... Nf6 {[%clk 0:02:59.3]}
4. Bf4 {[%clk 0:02:59.8]} 4... Qb6 {[%clk 0:02:58.8]} 5. Qb3 {[%clk 0:02:59.5]}
5... Bf5 {[%clk 0:02:59.5]} 6. e3 {[%clk 0:02:58.9]} 6... h6 {[%clk 0:02:58.5]}
7. Nbd2 {[%clk 0:02:59]} 7... Nbd7 {[%clk 0:02:58.3]} 8. h3 {[%clk 0:02:59.3]}
8... e6 {[%clk 0:02:58.7]} 9. Be2 {[%clk 0:02:59]} 9... Be7 {[%clk 0:02:58.4]}
10. O-O {[%clk 0:02:59.4]} 10... O-O {[%clk 0:02:58.3]} 11. Ne5 {[%clk
0:02:59.6]} 11... Nxe5 {[%clk 0:02:57.7]} 12. Bxe5 {[%clk 0:03:00.5]} 12... Nd7
{[%clk 0:02:57.9]} 13. Bg3 {[%clk 0:03:00.5]} 13... a5 {[%clk 0:02:57.6]} 14. a4
{[%clk 0:02:59.7]} 14... Qa7 {[%clk 0:02:56.7]} 15. Nf3 {[%clk 0:02:54.5]} 15...
Rfc8 {[%clk 0:02:49.8]} 16. Ne5 {[%clk 0:02:53.6]} 16... Nf6 {[%clk 0:02:49.5]}
17. c4 {[%clk 0:02:45.9]} 17... Ne4 {[%clk 0:02:48.2]} 18. Qd1 {[%clk 0:02:22]}
18... Qb6 {[%clk 0:02:42.1]} 19. b3 {[%clk 0:02:19.2]} 19... Nc3 {[%clk
0:02:35.3]} 20. Qe1 {[%clk 0:02:08]} 20... Nxe2+ {[%clk 0:02:33.8]} 21. Qxe2
{[%clk 0:02:08.9]} 21... Qxb3 {[%clk 0:02:34.1]} 22. Rfd1 {[%clk 0:01:45.8]}
22... Bb4 {[%clk 0:02:28.6]} 23. c5 {[%clk 0:01:36]} 23... Rd8 {[%clk
0:01:55.1]} 24. Nd3 {[%clk 0:01:27.1]} 24... Qc4 {[%clk 0:01:50.3]} 25. Kf1
{[%clk 0:01:21.7]} 25... Ra6 {[%clk 0:01:45]} 26. Rac1 {[%clk 0:01:11.9]} 26...
Qb3 {[%clk 0:01:41.4]} 27. Qc2 {[%clk 0:01:05.4]} 27... Qxc2 {[%clk 0:01:38.2]}
28. Rxc2 {[%clk 0:01:06.3]} 28... Rc8 {[%clk 0:01:27]} 29. Rb2 {[%clk
0:00:46.9]} 29... Bxd3+ {[%clk 0:01:15.4]} 30. Rxd3 {[%clk 0:00:47.8]} 30... b5
{[%clk 0:01:12.3]} 31. cxb6 {[%clk 0:00:47.1]} 31... Rxb6 {[%clk 0:01:12.4]} 32.
f3 {[%clk 0:00:45.4]} 32... c5 {[%clk 0:01:10.5]} 33. dxc5 {[%clk 0:00:44.1]}
33... Rxc5 {[%clk 0:01:10.6]} 34. Ke2 {[%clk 0:00:37.1]} 34... Rc4 {[%clk
0:01:08.9]} 35. Be1 {[%clk 0:00:32.1]} 35... Kf8 {[%clk 0:01:00.9]} 36. Rdb3
{[%clk 0:00:29.8]} 36... Ke7 {[%clk 0:00:55.9]} 37. Bd2 {[%clk 0:00:28.8]} 37...
Kd6 {[%clk 0:00:54.7]} 38. Kd3 {[%clk 0:00:28.8]} 38... Kc5 {[%clk 0:00:52.5]}
39. e4 {[%clk 0:00:24]} 39... dxe4+ {[%clk 0:00:50]} 40. fxe4 {[%clk 0:00:24.7]}
40... Rd6+ {[%clk 0:00:50.3]} 41. Ke3 {[%clk 0:00:25.2]} 41... Bxd2+ {[%clk
0:00:44.5]} 42. Rxd2 {[%clk 0:00:25.1]} 42... Rxd2 {[%clk 0:00:42.8]} 43. Kxd2
{[%clk 0:00:26]} 43... Rxa4 {[%clk 0:00:42.8]} 44. Rb7 {[%clk 0:00:26]} 44...
Ra2+ {[%clk 0:00:34.9]} 45. Kc3 {[%clk 0:00:21.1]} 45... Rxg2 {[%clk 0:00:35.8]}
46. Rxf7 {[%clk 0:00:21.2]} 46... Rg3+ {[%clk 0:00:35.5]} 47. Kb2 {[%clk
0:00:21.4]} 47... Kd4 {[%clk 0:00:34]} 48. h4 {[%clk 0:00:19.4]} 48... Kxe4
{[%clk 0:00:33.8]} 0-1

[Event "Early-Titled-Tuesday-Blitz-February-06-2024"]
[Site "Chess.com"]
[Date "2024.02.06"]
[Round "1"]
[White "NM_Antelacus"]
[Black "Perecke"]
[Result "0-1"]
[WhiteElo "2238"]
[BlackElo "2593"]
[TimeControl "180+1"]
[EndTime "8:07:15 PST"]
[Termination "Perecke won by resignation"]

1. e4 {[%clk 0:03:00.9]} 1... c5 {[%clk 0:02:59.2]} 2. Nf3 {[%clk 0:03:00.9]}
2... e6 {[%clk 0:02:59.3]} 3. c3 {[%clk 0:02:58.2]} 3... d5 {[%clk 0:02:59.1]}
4. e5 {[%clk 0:02:58]} 4... d4 {[%clk 0:02:59]} 5. Bd3 {[%clk 0:02:57]} 5... Ne7
{[%clk 0:02:56.2]} 6. O-O {[%clk 0:02:55.4]} 6... Nbc6 {[%clk 0:02:55.2]} 7. Re1
{[%clk 0:02:54.2]} 7... g6 {[%clk 0:02:54.4]} 8. Qe2 {[%clk 0:02:50.2]} 8... Bg7
{[%clk 0:02:54.4]} 9. Na3 {[%clk 0:02:42.2]} 9... O-O {[%clk 0:02:53.5]} 10. Nc4
{[%clk 0:02:38.6]} 10... b5 {[%clk 0:02:46.5]} 11. Nd6 {[%clk 0:02:31.6]} 11...
c4 {[%clk 0:01:56.4]} 12. Be4 {[%clk 0:02:29.2]} 12... d3 {[%clk 0:01:57]} 13.
Qe3 {[%clk 0:02:17.3]} 13... Rb8 {[%clk 0:01:54.5]} 14. Bxc6 {[%clk 0:02:12]}
14... Nxc6 {[%clk 0:01:52.3]} 15. a4 {[%clk 0:02:06.6]} 15... a6 {[%clk
0:01:31.6]} 16. axb5 {[%clk 0:02:05.1]} 16... axb5 {[%clk 0:01:32.5]} 17. b3
{[%clk 0:02:01.7]} 17... Nxe5 {[%clk 0:01:31.2]} 18. Nxe5 {[%clk 0:01:48.1]}
18... Qxd6 {[%clk 0:01:30.5]} 19. bxc4 {[%clk 0:01:45.4]} 19... Bxe5 {[%clk
0:00:58.3]} 20. Ba3 {[%clk 0:01:33.4]} 20... Bxh2+ {[%clk 0:00:57.3]} 21. Kh1
{[%clk 0:01:32.8]} 21... b4 {[%clk 0:00:49.5]} 22. Bxb4 {[%clk 0:01:31]} 22...
Rxb4 {[%clk 0:00:49.8]} 23. cxb4 {[%clk 0:01:30.2]} 23... Bf4 {[%clk 0:00:50.4]}
24. Qf3 {[%clk 0:01:05.8]} 24... Bxd2 {[%clk 0:00:40.9]} 25. Red1 {[%clk
0:01:04.4]} 25... Bxb4 {[%clk 0:00:40]} 26. Rxd3 {[%clk 0:01:03]} 26... Qc7
{[%clk 0:00:39.1]} 27. Rc1 {[%clk 0:00:54.9]} 27... Bb7 {[%clk 0:00:38.5]} 28.
Qe2 {[%clk 0:00:48.3]} 28... Bc5 {[%clk 0:00:38.1]} 29. Rh3 {[%clk 0:00:44.3]}
29... Rd8 {[%clk 0:00:29.9]} 30. f3 {[%clk 0:00:19.4]} 30... Qf4 {[%clk
0:00:28.3]} 31. Rd1 {[%clk 0:00:17.9]} 31... Ra8 {[%clk 0:00:23.7]} 32. Qd2
{[%clk 0:00:15.9]} 32... Qxd2 {[%clk 0:00:13.7]} 33. Rxd2 {[%clk 0:00:15.5]}
33... Ra1+ {[%clk 0:00:13.3]} 34. Kh2 {[%clk 0:00:15.9]} 34... Rc1 {[%clk
0:00:14.2]} 35. Rd7 {[%clk 0:00:14.9]} 35... Ba6 {[%clk 0:00:13.3]} 36. Rc7
{[%clk 0:00:14.3]} 36... Bd6+ {[%clk 0:00:12.5]} 0-1

[Event "Early-Titled-Tuesday-Blitz-February-06-2024"]
[Site "Chess.com"]
[Date "2024.02.06"]
[Round "1"]
[White "margarita_2703"]
[Black "nekotyanof"]
[Result "0-1"]
[WhiteElo "2338"]
[BlackElo "2654"]
[TimeControl "180+1"]
[EndTime "8:07:16 PST"]
[Termination "nekotyanof won by checkmate"]

1. e4 {[%clk 0:03:00.9]} 1... c5 {[%clk 0:02:59.8]} 2. Nf3 {[%clk 0:03:00.6]}
2... Nc6 {[%clk 0:03:00.1]} 3. c3 {[%clk 0:02:59.7]} 3... Nf6 {[%clk 0:03:00.1]}
4. e5 {[%clk 0:02:59.7]} 4... Nd5 {[%clk 0:02:59.2]} 5. d4 {[%clk 0:03:00.6]}
5... cxd4 {[%clk 0:02:59.1]} 6. cxd4 {[%clk 0:03:00.7]} 6... d6 {[%clk
0:02:59.8]} 7. Bc4 {[%clk 0:03:00.8]} 7... e6 {[%clk 0:03:00.7]} 8. O-O {[%clk
0:02:56.4]} 8... Be7 {[%clk 0:02:57.1]} 9. a3 {[%clk 0:02:56.4]} 9... O-O {[%clk
0:02:56.5]} 10. Qe2 {[%clk 0:02:55.9]} 10... Qb6 {[%clk 0:02:47.3]} 11. Rd1
{[%clk 0:02:52.8]} 11... Rd8 {[%clk 0:02:44]} 12. Nc3 {[%clk 0:02:48.9]} 12...
Nxc3 {[%clk 0:02:43.2]} 13. bxc3 {[%clk 0:02:49.8]} 13... dxe5 {[%clk
0:02:43.3]} 14. Nxe5 {[%clk 0:02:49.5]} 14... Nxe5 {[%clk 0:02:36.2]} 15. Qxe5
{[%clk 0:02:50.4]} 15... Bf6 {[%clk 0:02:36.3]} 16. Qe4 {[%clk 0:02:49.5]} 16...
Bd7 {[%clk 0:02:30.5]} 17. Rb1 {[%clk 0:02:47.5]} 17... Qc6 {[%clk 0:02:27.6]}
18. Bd3 {[%clk 0:02:43.2]} 18... g6 {[%clk 0:02:18]} 19. Rxb7 {[%clk 0:02:33.5]}
19... Rab8 {[%clk 0:01:52.3]} 20. Rxa7 {[%clk 0:02:27.8]} 20... Qxc3 {[%clk
0:01:46.4]} 21. Be3 {[%clk 0:02:14.3]} 21... Bg7 {[%clk 0:01:07.8]} 22. h4
{[%clk 0:02:06.7]} 22... Be8 {[%clk 0:01:03.1]} 23. Rc1 {[%clk 0:02:04.1]} 23...
Rxd4 {[%clk 0:00:49]} 24. Rxc3 {[%clk 0:01:58.5]} 24... Rxe4 {[%clk 0:00:49.3]}
25. Bxe4 {[%clk 0:01:54.5]} 25... Bxc3 {[%clk 0:00:49.9]} 26. a4 {[%clk
0:01:51.5]} 26... Rb4 {[%clk 0:00:49.5]} 27. Bc2 {[%clk 0:01:38.6]} 27... Kg7
{[%clk 0:00:49.6]} 28. a5 {[%clk 0:01:32.4]} 28... Rb2 {[%clk 0:00:48.2]} 29.
Bd3 {[%clk 0:01:25]} 29... Be5 {[%clk 0:00:48.5]} 30. g3 {[%clk 0:01:07.7]}
30... Ra2 {[%clk 0:00:47.1]} 31. Be4 {[%clk 0:01:00]} 31... Bb5 {[%clk
0:00:43.9]} 32. Bb6 {[%clk 0:00:51.3]} 32... Ra4 {[%clk 0:00:42.4]} 33. Bf3
{[%clk 0:00:45.8]} 33... Ra3 {[%clk 0:00:40.4]} 34. Kg2 {[%clk 0:00:44.5]} 34...
h6 {[%clk 0:00:40.2]} 35. Ra8 {[%clk 0:00:41.6]} 35... g5 {[%clk 0:00:39.1]} 36.
hxg5 {[%clk 0:00:41.3]} 36... hxg5 {[%clk 0:00:40]} 37. Bb7 {[%clk 0:00:39.3]}
37... Ra1 {[%clk 0:00:32.8]} 38. a6 {[%clk 0:00:38.3]} 38... Bf1+ {[%clk
0:00:33]} 39. Kf3 {[%clk 0:00:37.1]} 39... Ra3+ {[%clk 0:00:31.9]} 40. Ke4
{[%clk 0:00:31.6]} 40... f6 {[%clk 0:00:32.4]} 41. Be3 {[%clk 0:00:17.1]} 41...
g4 {[%clk 0:00:30.9]} 42. f4 {[%clk 0:00:10.6]} 42... Bd3# {[%clk 0:00:28.7]}
0-1